bitfinex/quotes_BTCUSD_20251202
["timestamp","ask_amount","ask_price","bid_price","bid_amount"]
[1764640333489,0.24251308,86594.0,86593.0,0.14369]
[1764640333698,0.24251308,86594.0,86593.0,0.14269]
[1764640334173,0.24251308,86594.0,86593.0,0.14469]
[1764640343795,0.24251308,86594.0,86587.0,0.00044437]
[1764640343796,0.23097888,86588.0,86587.0,0.00044437]
[1764640344196,0.23097888,86588.0,86587.0,0.10906437]
[1764640345175,0.23097888,86588.0,86587.0,0.11006437]
[1764640345846,0.23097888,86588.0,86587.0,0.10906437]
[1764640346434,0.23097888,86588.0,86587.0,0.11206437]
[1764640346817,0.23097888,86588.0,86587.0,0.10906437]
[1764640347091,0.23097888,86588.0,86587.0,0.11306437]
[1764640347468,0.23097888,86588.0,86587.0,0.11206437]
[1764640347841,0.23097888,86588.0,86587.0,0.11306437]
[1764640348213,0.23097888,86588.0,86587.0,0.04570437]
[1764640349099,0.23097888,86588.0,86587.0,0.00600437]
[1764640349724,0.23097888,86588.0,86587.0,0.07336437]
[1764640353930,0.23097888,86588.0,86587.0,0.00600437]
[1764640354131,0.23097888,86588.0,86587.0,0.06798437]
[1764640354371,0.01154854,86591.0,86587.0,0.06798437]
[1764640354574,0.01154867,86590.0,86587.0,0.06598]
[1764640354933,0.2425237,86590.0,86589.0,0.04267]
[1764640355333,0.2425237,86590.0,86589.0,0.10465]
[1764640356034,0.24253879,86585.0,86582.0,0.09617]
[1764640356237,0.23099222,86583.0,86582.0,0.03233]
[1764640356587,0.23099222,86583.0,86582.0,0.07203]
[1764640356793,0.23099222,86583.0,86582.0,0.13587]
[1764640357236,0.23099222,86583.0,86582.0,0.14087]
[1764640357906,0.23099222,86583.0,86582.0,0.13987]
[1764640359128,0.23099222,86583.0,86582.0,0.14087]
[1764640362143,0.23099222,86583.0,86582.0,0.03733]
[1764640362359,0.23099222,86583.0,86582.0,0.03633]
[1764640362702,0.23099222,86583.0,86582.0,0.03333]
[1764640362831,0.23099222,86583.0,86582.0,0.03733]
[1764640363026,0.23099222,86583.0,86582.0,0.03633]
[1764640363243,0.23099222,86583.0,86582.0,0.07203]
[1764640363442,0.23099222,86583.0,86582.0,0.07603]
[1764640364632,0.3290581,86583.0,86582.0,0.004]
[1764640364833,0.28200846,86583.0,86582.0,0.004]
[1764640365032,0.25554846,86583.0,86582.0,0.004]
[1764640365215,0.23099222,86583.0,86582.0,0.004]
[1764640365615,0.23099222,86583.0,86582.0,0.003]
[1764640365841,0.23099756,86581.0,86580.0,0.0001]
[1764640366518,0.63954903,86581.0,86580.0,0.0001]
[1764640366717,0.66410527,86581.0,86580.0,0.0001]
[1764640366885,0.65261724,86581.0,86580.0,0.0001]
[1764640367054,0.65261724,86581.0,86580.0,0.0021]
[1764640367258,0.5785538,86581.0,86580.0,0.0021]
[1764640368499,0.6205938,86581.0,86580.0,0.0031]
[1764640369800,0.5785538,86581.0,86580.0,0.0031]
[1764640370246,0.5785538,86581.0,86580.0,0.0428]
[1764640370468,0.5785538,86581.0,86580.0,0.10664]
[1764640375268,0.67502627,86581.0,86580.0,0.10664]
[1764640375903,0.5785538,86581.0,86580.0,0.10664]
[1764640379361,0.34755624,86581.0,86580.0,0.10664]
[1764640379561,0.01154961,86583.0,86580.0,0.10664]
[1764640379702,0.01154961,86583.0,86582.0,0.0397]
[1764640379890,0.01154907,86587.0,86582.0,0.10354]
[1764640380091,0.23098955,86584.0,86582.0,0.06384]
[1764640380313,0.01154961,86583.0,86580.0,0.0031]
[1764640380516,0.01154961,86583.0,86580.0,0.0021]
[1764640380717,0.01154961,86583.0,86582.0,0.0397]
[1764640381095,0.01154961,86583.0,86582.0,0.10354]
[1764640382265,0.01154961,86583.0,86582.0,0.10654]
[1764640382452,0.23098955,86584.0,86582.0,0.10754]
[1764640382628,0.23098955,86584.0,86583.0,0.10354]
[1764640383651,0.23098955,86584.0,86583.0,0.10554]
[1764640383848,0.25500549,86584.0,86583.0,0.002]
[1764640384077,0.23098955,86584.0,86583.0,0.10554]
[1764640384633,0.23098955,86584.0,86583.0,0.10654]
[1764640387308,0.33454814,86594.0,86587.0,0.01154907]
[1764640387524,0.01154894,86588.0,86584.0,0.08572]
[1764640387737,0.24253232,86587.0,86584.0,0.08572]
[1764640387950,0.24253232,86587.0,86585.0,0.05973]
[1764640388161,0.24253232,86587.0,86586.0,0.03819]
[1764640388564,0.24253232,86587.0,86586.0,0.09792]
[1764640389406,0.24252845,86588.0,86586.0,0.09892]
[1764640389607,0.24252845,86588.0,86587.0,0.09792]
[1764640390749,0.24252845,86588.0,86587.0,0.09892]
[1764640391620,0.24252845,86588.0,86587.0,0.09992]
[1764640392254,0.01154894,86588.0,86587.0,0.09992]
[1764640392480,0.01154854,86591.0,86588.0,0.01154894]
[1764640392688,0.2425212,86591.0,86590.0,0.03819]
[1764640393110,0.2425212,86591.0,86590.0,0.09792]
[1764640393111,0.01154854,86591.0,86590.0,0.09792]
[1764640394189,0.03178173,86607.0,86595.0,0.01154801]
[1764640394385,0.00112043,86607.0,86606.0,0.06909]
[1764640394601,0.00112043,86607.0,86606.0,0.08737]
[1764640394822,0.00112043,86607.0,86606.0,0.1471]
[1764640395707,0.00112043,86607.0,86606.0,0.1511]
[1764640397130,0.00112043,86607.0,86606.0,0.1521]
[1764640397575,0.00112043,86607.0,86606.0,0.21462299]
[1764640398009,0.00112043,86607.0,86606.0,0.22611819]
[1764640398218,0.01154094,86648.0,86641.0,0.01154187]
[1764640398365,0.01154041,86652.0,86641.0,0.01154187]
[1764640398366,0.01154014,86654.0,86649.0,0.05941]
[1764640398712,0.04587209,86651.0,86650.0,0.03819]
[1764640399008,0.04587209,86651.0,86649.0,0.02122]
[1764640399009,0.23081361,86650.0,86649.0,0.02122]
[1764640399184,0.55381361,86650.0,86649.0,0.02122]
[1764640399508,0.55381361,86650.0,86649.0,0.11925572]
[1764640400023,0.323,86650.0,86649.0,0.11925572]
[1764640400219,0.55381361,86650.0,86649.0,0.11925572]
[1764640400438,0.323,86650.0,86649.0,0.11925572]
[1764640400577,0.323,86650.0,86649.0,0.15966266]
[1764640400763,0.55381361,86650.0,86649.0,0.11925572]
[1764640400966,0.23081361,86650.0,86649.0,0.11925572]
[1764640401467,0.23081361,86650.0,86649.0,0.12025572]
[1764640402107,0.2423487,86652.0,86649.0,0.12125572]
[1764640402343,0.2423487,86652.0,86651.0,0.03819]
[1764640402754,0.2423487,86652.0,86651.0,0.09792]
[1764640404081,0.2423487,86652.0,86651.0,0.09892]
[1764640404291,0.05790705,86652.0,86651.0,0.09892]
[1764640404524,0.05933412,86652.0,86651.0,0.09892]
[1764640407159,0.05933412,86652.0,86651.0,0.001]
[1764640407379,0.07082215,86652.0,86651.0,0.001]
[1764640407980,0.05933412,86652.0,86651.0,0.001]
[1764640408148,0.23081361,86650.0,86649.0,0.00011572]
[1764640408350,0.28521635,86650.0,86649.0,0.00011572]
[1764640408601,0.55381361,86650.0,86649.0,0.00011572]
[1764640410468,0.55481361,86650.0,86649.0,0.00011572]
[1764640413015,0.59400361,86650.0,86649.0,0.00011572]
[1764640413221,0.66891164,86650.0,86649.0,0.00011572]
[1764640413441,0.70361749,86650.0,86649.0,0.00011572]
[1764640413680,0.69349314,86650.0,86649.0,0.00011572]
[1764640413930,0.70498117,86650.0,86649.0,0.00011572]
[1764640414152,0.61530882,86650.0,86649.0,0.00011572]
[1764640414398,0.55517729,86650.0,86649.0,0.09803572]
[1764640414630,0.55817729,86650.0,86649.0,0.09803572]
[1764640415063,0.55917729,86650.0,86649.0,0.09803572]
[1764640415506,0.55817729,86650.0,86649.0,0.09803572]
[1764640416197,0.55517729,86650.0,86649.0,0.09803572]
[1764640416647,0.55617729,86650.0,86649.0,0.09803572]
[1764640416880,0.00236368,86650.0,86649.0,0.34405388]
[1764640417760,0.00136368,86650.0,86649.0,0.34405388]
[1764640418280,0.00136368,86650.0,86649.0,0.00211572]
[1764640418281,0.23217729,86650.0,86649.0,0.00211572]
[1764640418505,0.23217729,86650.0,86649.0,0.00311572]
[1764640418944,0.55517729,86650.0,86649.0,0.00311572]
[1764640419148,0.55517729,86650.0,86649.0,0.00211572]
[1764640419149,0.59415729,86650.0,86649.0,0.00211572]
[1764640419364,0.65639729,86650.0,86649.0,0.00011572]
[1764640419564,0.69238177,86650.0,86649.0,0.00111572]
[1764640421580,0.57967374,86650.0,86649.0,0.00111572]
[1764640422271,0.69238177,86650.0,86649.0,0.00111572]
[1764640422508,0.72304785,86650.0,86649.0,0.00111572]
[1764640422718,0.69238177,86650.0,86649.0,0.00111572]
[1764640424709,0.63014177,86650.0,86649.0,0.00111572]
[1764640424908,0.59116177,86650.0,86649.0,0.00111572]
[1764640425110,0.62064759,86650.0,86649.0,0.04087572]
[1764640425358,0.57967374,86650.0,86649.0,0.10111572]
[1764640425686,0.57967374,86650.0,86649.0,0.04087572]
[1764640426852,0.57967374,86650.0,86649.0,0.10111572]
[1764640427173,0.57967374,86650.0,86649.0,0.04087572]
[1764640428188,0.57967374,86650.0,86649.0,0.00111572]
[1764640428622,0.85815989,86650.0,86649.0,0.00111572]
[1764640428891,0.23085624,86634.0,86633.0,0.0309]
[1764640429095,0.27672833,86634.0,86633.0,0.0309]
[1764640429249,0.30122478,86634.0,86633.0,0.0309]
[1764640429457,0.30122478,86634.0,86633.0,0.07066]
[1764640429643,0.30122478,86634.0,86633.0,0.1309]
[1764640429844,0.12384325,86634.0,86633.0,0.1309]
[1764640430050,0.0993468,86634.0,86633.0,0.1309]
[1764640432431,0.0993468,86634.0,86633.0,0.07066]
[1764640433870,0.0993468,86634.0,86633.0,0.1309]
[1764640434080,0.0993468,86634.0,86633.0,0.07066]
[1764640434241,0.0993468,86634.0,86633.0,0.1309]
[1764640434592,0.10020322,86634.0,86633.0,0.1309]
[1764640436110,0.04587209,86635.0,86633.0,0.09114]
[1764640436302,0.04587209,86635.0,86634.0,0.1]
[1764640437034,0.04587209,86635.0,86634.0,0.11309]
[1764640438434,0.04587209,86635.0,86634.0,0.05285]
[1764640439303,0.04587209,86635.0,86634.0,0.03976]
[1764640440619,0.04587209,86635.0,86634.0,0.1]
[1764640440818,0.24239162,86637.0,86634.0,0.1]
[1764640441017,0.56539162,86637.0,86636.0,0.03976]
[1764640441341,0.323,86637.0,86636.0,0.03976]
[1764640441482,0.323,86637.0,86636.0,0.1]
[1764640441685,0.01154161,86643.0,86638.0,0.01154227]
[1764640441891,0.00025369,86642.0,86641.0,0.02856]
[1764640442319,0.00025369,86642.0,86641.0,0.12856]
[1764640444465,0.00025369,86642.0,86641.0,0.1400552]
[1764640452333,0.00025369,86642.0,86641.0,0.12959]
[1764640452703,0.00025369,86642.0,86641.0,0.46114901]
[1764640452902,0.01153908,86662.0,86654.0,0.01154014]
[1764640453019,0.01153948,86659.0,86657.0,0.03993]
[1764640453221,0.01153961,86658.0,86655.0,0.09109001]
[1764640453421,0.33453948,86659.0,86657.0,0.07146]
[1764640453699,0.33453948,86659.0,86658.0,0.03993]
[1764640453882,0.33453948,86659.0,86658.0,0.1012]
[1764640454661,0.24232912,86659.0,86658.0,0.1012]
[1764640456728,0.33453934,86660.0,86658.0,0.1012]
[1764640457059,0.00011574,86662.0,86659.0,0.1012]
[1764640457171,0.00011574,86662.0,86661.0,0.03993]
[1764640457529,0.23089739,86662.0,86661.0,0.03993]
[1764640457704,0.23089739,86662.0,86661.0,0.1012]
[1764640457705,0.00011574,86662.0,86661.0,0.1012]
[1764640457885,0.00011574,86662.0,86661.0,0.14168795]
[1764640458117,0.01147969,86666.0,86665.0,0.07146]
[1764640459411,0.23078964,86659.0,86657.0,0.03153]
[1764640459590,0.23081566,86650.0,86649.0,0.01828]
[1764640459783,0.23081566,86650.0,86649.0,0.01839574]
[1764640460084,0.23081566,86650.0,86649.0,0.11959574]
[1764640462196,0.23081566,86650.0,86649.0,0.12059574]
[1764640462801,0.23081566,86650.0,86649.0,0.12159574]
[1764640466234,0.01153974,86657.0,86651.0,0.23080898]
[1764640466409,0.01153974,86657.0,86656.0,0.03993]
[1764640466619,0.24233494,86657.0,86656.0,0.03993]
[1764640466817,0.2423487,86652.0,86649.0,0.00211574]
[1764640467013,0.2423487,86652.0,86649.0,0.00111574]
[1764640467172,0.23081361,86650.0,86649.0,0.00111574]
[1764640467782,0.23081361,86650.0,86649.0,0.04104574]
[1764640468003,0.23106728,86650.0,86649.0,0.04104574]
[1764640468320,0.23106728,86650.0,86649.0,0.04004574]
[1764640468479,0.23106728,86650.0,86649.0,0.10131574]
[1764640469329,0.23106728,86650.0,86649.0,0.10231574]
[1764640472119,0.00025367,86650.0,86649.0,0.11865648]
[1764640472323,0.00025367,86650.0,86649.0,0.13015168]
[1764640474232,0.00025367,86650.0,86649.0,0.11865648]
[1764640474655,0.00025367,86650.0,86649.0,0.04104574]
[1764640476365,0.23106728,86650.0,86649.0,0.09976574]
[1764640477986,0.23106728,86650.0,86649.0,0.00111574]
[1764640478551,0.27235728,86650.0,86649.0,0.00011574]
[1764640478750,0.66538531,86650.0,86649.0,0.00011574]
[1764640478996,0.67856619,86650.0,86649.0,0.00011574]
[1764640479175,0.63151422,86650.0,86649.0,0.00011574]
[1764640480841,0.74675364,86650.0,86649.0,0.00011574]
[1764640482971,0.74875364,86650.0,86649.0,0.00011574]
[1764640483534,0.73726561,86650.0,86649.0,0.00011574]
[1764640483730,0.74875364,86650.0,86649.0,0.00011574]
[1764640484460,0.74675364,86650.0,86649.0,0.00011574]
[1764640484853,0.74975364,86650.0,86649.0,0.00011574]
[1764640488310,0.80906621,86650.0,86649.0,0.00011574]
[1764640488589,0.76803364,86650.0,86649.0,0.00011574]
[1764640489727,0.76803364,86650.0,86622.0,0.00111997]
[1764640489728,0.24237359,86623.0,86622.0,0.00111997]
[1764640489928,0.29129929,86623.0,86622.0,0.00111997]
[1764640490626,0.60281126,86623.0,86622.0,0.00111997]
[1764640490820,0.60281126,86623.0,86622.0,0.00211997]
[1764640491631,0.55400126,86623.0,86622.0,0.00411997]
[1764640492424,0.55400126,86623.0,86622.0,0.00111997]
[1764640492627,0.55400126,86623.0,86622.0,0.00311997]
[1764640493441,0.59529126,86623.0,86622.0,0.00311997]
[1764640493645,0.60677929,86623.0,86622.0,0.00311997]
[1764640493844,0.55400126,86623.0,86622.0,0.00311997]
[1764640497675,0.55400126,86623.0,86622.0,0.10319997]
[1764640498211,0.23100126,86623.0,86622.0,0.10319997]
[1764640498414,0.23100126,86623.0,86622.0,0.00311997]
[1764640498780,0.24248929,86623.0,86622.0,0.00311997]
[1764640499429,0.23100126,86623.0,86622.0,0.00311997]
[1764640500699,0.55400126,86623.0,86622.0,0.00311997]
[1764640504718,0.57337126,86623.0,86622.0,0.00311997]
[1764640506391,0.67002126,86623.0,86622.0,0.00311997]
[1764640506587,0.61259126,86623.0,86622.0,0.00311997]
[1764640507036,0.57337126,86623.0,86622.0,0.00311997]
[1764640507613,0.61259126,86623.0,86622.0,0.00311997]
[1764640508040,0.67002126,86623.0,86622.0,0.00311997]
[1764640508262,0.8213396,86623.0,86622.0,0.00311997]
[1764640508429,0.86235499,86623.0,86622.0,0.00311997]
[1764640508632,0.91097739,86623.0,86622.0,0.00311997]
[1764640508833,0.8494696,86623.0,86622.0,0.00211997]
[1764640509646,0.8494696,86623.0,86622.0,0.00111997]
[1764640510004,0.8514696,86623.0,86622.0,0.00111997]
[1764640510207,0.23096288,86594.0,86593.0,0.02923]
[1764640510755,0.23096288,86594.0,86593.0,0.12124]
[1764640511394,0.23107851,86594.0,86593.0,0.12124]
[1764640511593,0.23107851,86594.0,86593.0,0.001]
[1764640511816,0.23107851,86594.0,86593.0,0.003]
[1764640512045,0.24256654,86594.0,86593.0,0.003]
[1764640512396,0.28178654,86594.0,86593.0,0.002]
[1764640512779,0.23098689,86585.0,86584.0,0.02923]
[1764640513179,0.23098689,86585.0,86584.0,0.06669]
[1764640513922,0.23098689,86585.0,86584.0,0.12124]
[1764640514126,0.23098422,86586.0,86584.0,0.12124]
[1764640514267,0.2425253,86589.0,86586.0,0.03746]
[1764640514492,0.08251865,86627.0,86586.0,0.03746]
[1764640514493,0.01154734,86600.0,86592.0,0.23096821]
[1764640514725,0.01154787,86596.0,86593.0,0.06669]
[1764640514962,0.01154761,86598.0,86593.0,0.06669]
[1764640515162,0.01154774,86597.0,86593.0,0.12124]
[1764640515817,0.01154707,86602.0,86593.0,0.12124]
[1764640515818,0.56547447,86608.0,86593.0,0.20296331]
[1764640516028,0.01154601,86610.0,86593.0,0.21445851]
[1764640516216,0.01154547,86614.0,86593.0,0.21445851]
[1764640516619,0.01154547,86614.0,86593.0,0.21745851]
[1764640516818,0.01154587,86611.0,86593.0,0.21745851]
[1764640516979,0.01154587,86611.0,86593.0,0.21545851]
[1764640516980,0.01154614,86609.0,86593.0,0.21545851]
[1764640517182,0.01154601,86610.0,86593.0,0.22045851]
[1764640517419,0.01154587,86611.0,86593.0,0.21945851]
[1764640517686,0.01154574,86612.0,86593.0,0.22045851]
[1764640518844,0.5654575,86614.0,86593.0,0.22045851]
[1764640519043,0.2424575,86614.0,86593.0,0.22045851]
[1764640519356,0.2308992,86618.0,86593.0,0.22045851]
[1764640519902,0.23090371,86617.0,86593.0,0.22045851]
[1764640520340,0.01154534,86615.0,86593.0,0.22045851]
[1764640520862,0.23090371,86617.0,86593.0,0.22045851]
[1764640521271,0.01154481,86619.0,86593.0,0.22045851]
[1764640521470,0.01154507,86617.0,86593.0,0.22045851]
[1764640521699,0.01154521,86616.0,86593.0,0.22045851]
[1764640521872,0.01154494,86618.0,86593.0,0.22045851]
[1764640522029,0.01154521,86616.0,86593.0,0.22045851]
[1764640522231,0.01154454,86621.0,86593.0,0.22045851]
[1764640522445,0.01154481,86619.0,86593.0,0.22045851]
[1764640523071,0.01154454,86621.0,86593.0,0.22045851]
[1764640523286,0.24242641,86625.0,86621.0,0.06605]
[1764640523486,8.915e-05,86625.0,86624.0,0.03746]
[1764640523907,8.915e-05,86625.0,86624.0,0.09201]
[1764640525277,8.915e-05,86625.0,86621.0,0.02859]
[1764640525278,0.24242703,86624.0,86621.0,0.02859]
[1764640525679,0.23088822,86622.0,86621.0,0.02859]
[1764640525915,0.23089888,86618.0,86617.0,0.01828]
[1764640526121,0.23089888,86618.0,86602.0,0.05455]
[1764640526122,0.01154587,86611.0,86602.0,0.05455]
[1764640526330,0.24245543,86614.0,86608.0,0.31832184]
[1764640526523,0.01154547,86614.0,86613.0,0.06669]
[1764640527533,0.01154547,86614.0,86613.0,0.12324]
[1764640527745,0.01154547,86614.0,86613.0,0.12424]
[1764640528289,0.01154547,86614.0,86613.0,0.06969]
[1764640529631,0.01154547,86614.0,86613.0,0.12424]
[1764640529894,0.01154547,86614.0,86613.0,0.12452556]
[1764640531579,0.01154521,86616.0,86613.0,0.12452556]
[1764640531779,0.01154521,86616.0,86615.0,0.03746]
[1764640532360,0.01154521,86616.0,86615.0,0.09201]
[1764640533279,0.01154521,86616.0,86615.0,0.03846]
[1764640533499,0.01154521,86616.0,86615.0,0.03946]
[1764640534559,8.915e-05,86625.0,86615.0,0.09401]
[1764640534804,0.01154481,86619.0,86616.0,0.09201]
[1764640535179,0.01154454,86621.0,86618.0,0.03746]
[1764640535381,0.01154441,86622.0,86621.0,0.03746]
[1764640535585,0.23089622,86619.0,86615.0,0.2424521]
[1764640535786,0.23089622,86619.0,86616.0,0.06207]
[1764640536061,0.23089622,86619.0,86618.0,0.03879]
[1764640536062,0.01154481,86619.0,86618.0,0.03879]
[1764640536507,0.01154481,86619.0,86618.0,0.09556]
[1764640536705,0.01154481,86619.0,86615.0,0.01154534]
[1764640536706,0.01154561,86613.0,86609.0,0.06252299]
[1764640536913,0.01154561,86613.0,86608.0,0.01154627]
[1764640536914,0.01154561,86613.0,86612.0,0.01828]
[1764640537504,0.01154547,86614.0,86612.0,0.01828]
[1764640537908,0.01154547,86614.0,86613.0,0.04085556]
[1764640538282,0.01154547,86614.0,86613.0,0.00028556]
[1764640538410,0.01154547,86614.0,86613.0,0.04085556]
[1764640539129,0.01154547,86614.0,86613.0,0.04185556]
[1764640539361,0.01154547,86614.0,86613.0,0.09862556]
[1764640539561,0.01154547,86614.0,86613.0,0.09962556]
[1764640539927,0.01163316,86625.0,86620.0,0.23089196]
[1764640540114,0.05750525,86625.0,86624.0,0.04057]
[1764640540727,0.05750525,86625.0,86624.0,0.09734]
[1764640541174,0.04596124,86625.0,86624.0,0.09734]
[1764640541379,8.915e-05,86625.0,86624.0,0.09734]
[1764640542118,0.00108915,86625.0,86624.0,0.1088352]
[1764640542295,8.915e-05,86625.0,86624.0,0.33971809]
[1764640542494,8.915e-05,86625.0,86624.0,0.09734]
[1764640542818,0.00108915,86625.0,86624.0,0.09734]
[1764640543015,0.00108915,86625.0,86624.0,0.18583316]
[1764640543418,8.915e-05,86625.0,86624.0,0.09734]
[1764640543648,0.01163316,86625.0,86622.0,0.01828]
[1764640544125,8.915e-05,86625.0,86624.0,0.27145289]
[1764640544504,8.915e-05,86625.0,86624.0,0.32822289]
[1764640544715,8.915e-05,86625.0,86624.0,0.09734]
[1764640544942,0.01163316,86625.0,86620.0,0.03047]
[1764640545114,0.01154427,86623.0,86621.0,0.01828]
[1764640545314,0.01163316,86625.0,86624.0,0.04057]
[1764640545315,8.915e-05,86625.0,86624.0,0.04057]
[1764640545726,8.915e-05,86625.0,86624.0,0.09734]
[1764640547892,0.23088822,86622.0,86621.0,0.01828]
[1764640548208,0.23088822,86622.0,86621.0,0.05885]
[1764640548473,0.23088822,86622.0,86621.0,0.11562]
[1764640548878,0.23088822,86622.0,86621.0,0.05885]
[1764640549077,0.24242703,86624.0,86609.0,0.30499193]
[1764640549078,0.23090464,86616.0,86614.0,0.06277682]
[1764640549282,0.23090464,86616.0,86614.0,0.00025383]
[1764640549486,0.23090464,86616.0,86615.0,0.04057]
[1764640549987,0.23090464,86616.0,86615.0,0.09734]
[1764640551269,0.23090464,86616.0,86614.0,0.01953383]
[1764640551474,0.04587209,86615.0,86614.0,0.00125383]
[1764640551918,0.04587209,86615.0,86614.0,0.00025383]
[1764640552987,0.04587209,86615.0,86614.0,0.04182383]
[1764640553367,0.04587209,86615.0,86614.0,0.00225383]
[1764640553980,0.08753209,86615.0,86614.0,0.00225383]
[1764640554190,0.20405357,86615.0,86614.0,0.00225383]
[1764640554387,0.07050554,86615.0,86614.0,0.00225383]
[1764640554714,0.07050554,86615.0,86614.0,0.00025383]
[1764640554914,0.13149554,86615.0,86614.0,0.00025383]
[1764640555412,0.14498357,86615.0,86614.0,0.00025383]
[1764640555692,0.20405357,86615.0,86614.0,0.00025383]
[1764640556125,0.14398357,86615.0,86614.0,0.00025383]
[1764640557505,0.09083554,86615.0,86614.0,0.00025383]
[1764640557940,0.51656554,86615.0,86614.0,0.00025383]
[1764640558233,0.56277291,86615.0,86614.0,0.00025383]
[1764640558428,0.59347346,86615.0,86614.0,0.00025383]
[1764640558630,0.58198543,86615.0,86614.0,0.00025383]
[1764640558781,0.59347346,86615.0,86614.0,0.00025383]
[1764640559296,0.56277291,86615.0,86614.0,0.00025383]
[1764640559499,0.58378025,86615.0,86614.0,0.00025383]
[1764640559928,0.58378025,86615.0,86580.0,0.0001]
[1764640559929,0.23099756,86581.0,86580.0,0.0001]
[1764640560970,0.27265756,86581.0,86580.0,0.0001]
[1764640561127,0.23106438,86581.0,86580.0,0.0011]
[1764640561341,0.23106438,86581.0,86580.0,0.09744]
[1764640561528,0.23106438,86581.0,86580.0,0.107184]
[1764640561886,6.682e-05,86581.0,86580.0,0.107184]
[1764640562093,0.04172682,86581.0,86580.0,0.0001]
[1764640562241,0.27272438,86581.0,86580.0,0.0001]
[1764640562625,0.27272438,86581.0,86580.0,0.0021]
[1764640563922,0.27272438,86581.0,86580.0,0.0011]
[1764640564264,0.27272438,86581.0,86580.0,0.0001]
[1764640564464,0.42106243,86581.0,86580.0,0.0001]
[1764640565366,0.46693452,86581.0,86580.0,0.00117919]
[1764640565955,0.78993452,86581.0,86580.0,0.00117919]
[1764640567132,0.79093452,86581.0,86580.0,0.00117919]
[1764640568401,0.59672438,86581.0,86580.0,0.00117919]
[1764640569239,0.60821241,86581.0,86580.0,0.00117919]
[1764640569742,0.55506438,86581.0,86580.0,0.00117919]
[1764640570003,0.55406438,86581.0,86580.0,0.00117919]
[1764640570361,0.55706438,86581.0,86580.0,0.00117919]
[1764640570667,0.23506438,86581.0,86580.0,0.00117919]
[1764640571440,0.23106438,86581.0,86580.0,0.03957919]
[1764640571652,0.23106438,86581.0,86580.0,0.09814919]
[1764640571849,0.23306438,86581.0,86580.0,0.09814919]
[1764640572677,0.00206682,86581.0,86580.0,0.09814919]
[1764640573040,6.682e-05,86581.0,86580.0,0.09814919]
[1764640573266,6.682e-05,86581.0,86580.0,0.09914919]
[1764640573507,6.682e-05,86581.0,86580.0,0.09814919]
[1764640573843,6.682e-05,86581.0,86580.0,0.09914919]
[1764640574443,6.682e-05,86581.0,86580.0,0.11064439]
[1764640574667,6.682e-05,86581.0,86580.0,0.20046314]
[1764640575906,6.682e-05,86581.0,86580.0,0.09914919]
[1764640576518,6.682e-05,86581.0,86580.0,0.11064439]
[1764640576726,6.682e-05,86581.0,86580.0,0.16167218]
[1764640576983,6.682e-05,86581.0,86580.0,0.17316738]
[1764640577265,6.682e-05,86581.0,86580.0,0.16167218]
[1764640577675,6.682e-05,86581.0,86580.0,0.17895218]
[1764640577830,6.682e-05,86581.0,86580.0,0.17995218]
[1764640578197,6.682e-05,86581.0,86580.0,0.18195218]
[1764640578727,6.682e-05,86581.0,86580.0,0.10114919]
[1764640578930,6.682e-05,86581.0,86580.0,0.00417919]
[1764640579361,0.05316941,86581.0,86580.0,0.00417919]
[1764640579555,6.682e-05,86581.0,86580.0,0.00417919]
[1764640579960,6.682e-05,86581.0,86580.0,0.00317919]
[1764640580199,6.682e-05,86581.0,86580.0,0.00117919]
[1764640580581,6.682e-05,86581.0,86580.0,0.00217919]
[1764640581358,0.03964682,86581.0,86580.0,0.00217919]
[1764640582046,0.05113485,86581.0,86580.0,0.00217919]
[1764640582173,0.01155485,86581.0,86580.0,0.00217919]
[1764640582376,6.682e-05,86581.0,86580.0,0.00217919]
[1764640582924,6.682e-05,86581.0,86580.0,0.00117919]
[1764640583934,6.682e-05,86581.0,86580.0,0.09814919]
[1764640584137,6.682e-05,86581.0,86580.0,0.00117919]
[1764640585418,6.682e-05,86581.0,86580.0,0.09814919]
[1764640587813,6.682e-05,86581.0,86580.0,0.03957919]
[1764640588014,6.682e-05,86581.0,86580.0,0.09814919]
[1764640589160,6.682e-05,86581.0,86580.0,0.13337531]
[1764640589369,6.682e-05,86581.0,86580.0,0.10964439]
[1764640589720,6.682e-05,86581.0,86580.0,0.09814919]
[1764640592574,6.682e-05,86581.0,86580.0,0.03957919]
[1764640592978,6.682e-05,86581.0,86580.0,0.00117919]
[1764640594612,0.09468682,86581.0,86580.0,0.00117919]
[1764640594817,0.10617485,86581.0,86580.0,0.00117919]
[1764640595176,0.54178915,86581.0,86580.0,0.00117919]
[1764640595332,0.56006915,86581.0,86580.0,0.00117919]
[1764640595535,0.46061479,86581.0,86580.0,0.00117919]
[1764640595716,0.47210282,86581.0,86580.0,0.00117919]
[1764640595921,0.47310282,86581.0,86580.0,0.00117919]
[1764640596121,0.47210282,86581.0,86580.0,0.00117919]
[1764640596430,0.44333479,86581.0,86580.0,0.00117919]
[1764640596618,0.40487479,86581.0,86580.0,0.00117919]
[1764640596821,0.55453707,86581.0,86580.0,0.00117919]
[1764640597025,0.5660251,86581.0,86580.0,0.00117919]
[1764640597228,0.47381282,86581.0,86580.0,0.00117919]
[1764640599616,0.51479877,86581.0,86580.0,0.00117919]
[1764640600137,0.47381282,86581.0,86580.0,0.00117919]
[1764640600475,0.11361803,86581.0,86580.0,0.00117919]
[1764640601681,0.11261803,86581.0,86580.0,0.00117919]
[1764640602080,0.11461803,86581.0,86580.0,0.00117919]
[1764640602708,0.10313,86581.0,86580.0,0.00117919]
[1764640602912,0.11461803,86581.0,86580.0,0.00117919]
[1764640603289,0.05716803,86581.0,86580.0,0.00117919]
[1764640603489,0.03888803,86581.0,86580.0,0.00117919]
[1764640604040,0.002,86581.0,86580.0,0.00117919]
[1764640604631,0.0254,86581.0,86580.0,0.00117919]
[1764640605010,0.03788803,86581.0,86580.0,0.00117919]
[1764640605207,0.001,86581.0,86580.0,0.00117919]
[1764640606023,0.0518,86581.0,86580.0,0.00117919]
[1764640606284,0.09747718,86581.0,86580.0,0.00117919]
[1764640606513,0.12287718,86581.0,86580.0,0.00117919]
[1764640606634,0.13436521,86581.0,86580.0,0.00117919]
[1764640607839,0.0264,86581.0,86580.0,0.00117919]
[1764640608036,0.001,86581.0,86580.0,0.00117919]
[1764640609278,0.06328803,86581.0,86580.0,0.00117919]
[1764640610420,0.09405781,86581.0,86580.0,0.00117919]
[1764640611637,0.41705781,86581.0,86580.0,0.00117919]
[1764640611772,0.54249994,86581.0,86580.0,0.00117919]
[1764640611977,0.50151399,86581.0,86580.0,0.00117919]
[1764640612432,0.52611851,86581.0,86580.0,0.00117919]
[1764640612836,0.52511851,86581.0,86580.0,0.00117919]
[1764640613100,0.52611851,86581.0,86580.0,0.00117919]
[1764640614544,0.52911851,86581.0,86580.0,0.00117919]
[1764640615666,0.23105093,86561.0,86560.0,0.0002]
[1764640615870,0.26793896,86561.0,86560.0,0.0002]